bitfinex/quotes_ETHUSD_20251127
["timestamp","ask_amount","ask_price","bid_price","bid_amount"]
[1764272081286,0.002,3031.0,3030.9,5.02489943]
[1764272081681,0.002,3031.0,3030.9,3.78565002]
[1764272082058,0.002,3031.0,3030.9,4.26285002]
[1764272086363,0.002,3031.0,3030.9,4.29584352]
[1764272088685,0.002,3031.0,3030.9,7.0138392]
[1764272088887,0.002,3031.0,3030.9,6.9808457]
[1764272089092,0.002,3031.0,3030.9,8.64197533]
[1764272092000,0.002,3031.0,3030.9,8.16477533]
[1764272092372,0.002,3031.0,3030.9,8.64197533]
[1764272092567,0.002,3031.0,3030.9,8.16477533]
[1764272093721,0.445,3031.0,3030.9,6.0183457]
[1764272094405,0.002,3031.0,3030.9,6.4987457]
[1764272095004,0.002,3031.0,3030.9,6.5317392]
[1764272095871,0.002,3031.0,3030.9,6.4987457]
[1764272096478,0.002,3031.0,3030.9,6.0183457]
[1764272097130,0.002,3031.0,3030.9,2.75198918]
[1764272097131,0.445,3031.0,3030.9,2.75198918]
[1764272097411,0.30961039,3031.0,3030.9,6.0513392]
[1764272098308,1.23261039,3031.0,3030.9,6.0513392]
[1764272099483,0.75291039,3031.0,3030.9,6.0513392]
[1764272100507,0.30961039,3031.0,3030.9,7.0089392]
[1764272100710,0.30961039,3031.0,3030.9,6.4987457]
[1764272100880,0.30961039,3031.0,3030.9,6.0513392]
[1764272100881,0.75261039,3031.0,3030.9,6.0513392]
[1764272101776,0.30961039,3031.0,3030.9,6.5317392]
[1764272102199,0.30961039,3031.0,3030.9,7.0089392]
[1764272102408,0.30961039,3031.0,3030.9,6.4987457]
[1764272102601,0.30961039,3031.0,3030.9,6.5317392]
[1764272103298,0.30961039,3031.0,3030.9,6.4987457]
[1764272103808,0.75261039,3031.0,3030.9,6.0183457]
[1764272104308,0.30961039,3031.0,3030.9,6.4987457]
[1764272104523,0.30961039,3031.0,3030.9,6.5317392]
[1764272105485,0.002,3031.0,3030.9,8.03987834]
[1764272105821,0.002,3031.0,3030.9,8.00688484]
[1764272106394,0.30960647,3031.0,3030.9,8.00688484]
[1764272107317,0.30960647,3031.0,3030.9,6.4987457]
[1764272107613,0.30960647,3031.0,3030.9,7.0089392]
[1764272107787,0.30960647,3031.0,3030.9,6.9759457]
[1764272111220,0.30960647,3031.0,3030.9,4.25795002]
[1764272111396,0.30960647,3031.0,3030.9,4.29094352]
[1764272112196,0.30960647,3031.0,3030.9,3.81374352]
[1764272112397,0.75700647,3031.0,3030.9,3.33334352]
[1764272112928,0.30960647,3031.0,3030.9,3.80684352]
[1764272113807,0.30976202,3031.0,3030.9,3.80684352]
[1764272114815,4.52720319,3031.0,3030.9,0.001]
[1764272115030,5.3200357,3031.0,3030.9,0.001]
[1764272115326,2.2529724,3031.0,3030.9,0.001]
[1764272115502,1.36013989,3031.0,3030.9,0.001]
[1764272118014,1.46013989,3031.0,3030.9,0.001]
[1764272118415,1.36013989,3031.0,3030.9,0.001]
[1764272119418,0.88933989,3031.0,3030.9,0.001]
[1764272119742,0.44193989,3031.0,3030.9,0.4718]
[1764272119942,0.44193989,3031.0,3030.9,0.9531]
[1764272120146,0.30976202,3031.0,3030.9,0.4718]
[1764272120449,0.30945479,3031.0,3030.9,0.4718]
[1764272121935,0.30945479,3031.0,3030.9,3.77115002]
[1764272122131,0.30945479,3031.0,3030.9,4.15166448]
[1764272122516,0.30945479,3031.0,3030.9,4.18465798]
[1764272123152,0.30857479,3031.0,3030.9,4.18465798]
[1764272123646,0.30857479,3031.0,3030.9,4.66595798]
[1764272127221,0.30857479,3031.0,3030.9,4.18465798]
[1764272127530,0.76097479,3031.0,3030.9,3.71385798]
[1764272127735,0.76097479,3031.0,3030.9,3.68086448]
[1764272128347,0.76097479,3031.0,3030.9,0.38151446]
[1764272128549,0.76097479,3031.0,3030.9,3.68086448]
[1764272128924,0.76097479,3031.0,3030.9,0.38151446]
[1764272129122,0.76097479,3031.0,3030.9,0.001]
[1764272129123,1.23157479,3031.0,3030.9,0.001]
[1764272130143,1.23157479,3031.0,3030.9,2.71899568]
[1764272132259,0.76097479,3031.0,3030.9,2.71899568]
[1764272132465,0.30857479,3031.0,3030.9,3.18979568]
[1764272132762,0.76097479,3031.0,3030.9,2.71899568]
[1764272133966,1.23157479,3031.0,3030.9,2.71899568]
[1764272136256,0.76097479,3031.0,3030.9,2.71899568]
[1764272137476,1.23157479,3031.0,3030.9,2.71899568]
[1764272139971,0.76097479,3031.0,3030.9,2.71899568]
[1764272140357,1.22237479,3031.0,3030.9,2.71899568]
[1764272146796,0.30857479,3031.0,3030.9,2.71899568]
[1764272147087,0.30857479,3031.0,3030.9,3.21419568]
[1764272147483,0.30857479,3031.0,3030.9,2.71899568]
[1764272147780,1.63727879,3031.0,3030.9,0.001]
[1764272147985,1.82200667,3031.0,3030.9,0.001]
[1764272148281,1.63727879,3031.0,3030.9,0.001]
[1764272150994,4.93651996,3031.0,3030.9,0.001]
[1764272152081,1.63727879,3031.0,3030.9,0.001]
[1764272153065,4.93651996,3031.0,3030.9,0.001]
[1764272154814,1.63727879,3031.0,3030.9,0.001]
[1764272157723,4.93651996,3031.0,3030.9,0.001]
[1764272158021,5.9043045,3031.0,3030.9,0.001]
[1764272161410,9.74864446,3031.0,3030.9,0.001]
[1764272161613,9.74864446,3031.0,3030.8,0.001]
[1764272161614,1.23109811,3030.9,3030.8,0.001]
[1764272161782,2.1920529,3030.9,3030.8,0.001]
[1764272161977,3.84400742,3030.9,3030.8,0.001]
[1764272162197,3.97622418,3030.9,3030.8,0.001]
[1764272162727,4.18422418,3030.9,3030.8,0.001]
[1764272162931,5.69940292,3030.9,3030.8,0.001]
[1764272163131,5.49140292,3030.9,3030.8,0.001]
[1764272163343,5.69940292,3030.9,3030.8,0.001]
[1764272165738,0.71295879,3030.9,3030.8,0.4962]
[1764272166055,0.92095879,3030.9,3030.8,0.4962]
[1764272166520,4.56130881,3030.9,3030.8,0.001]
[1764272166725,1.26195879,3030.9,3030.8,0.001]
[1764272167832,4.56130881,3030.9,3030.8,0.001]
[1764272168430,1.26195879,3030.9,3030.8,0.001]
[1764272168943,0.00112,3031.0,3030.8,4.21374585]
[1764272169124,0.00112,3031.0,3030.9,1.41537458]
[1764272169330,0.00112,3031.0,3030.9,0.994]
[1764272169925,0.00112,3031.0,3030.9,7.51209587]
[1764272170174,0.00112,3031.0,3030.9,7.72009587]
[1764272174049,0.00112,3031.0,3030.9,10.43809155]
[1764272175535,0.00112,3031.0,3030.9,10.53809155]
[1764272175734,0.00112,3031.0,3030.9,11.93515963]
[1764272176130,0.00112,3031.0,3030.9,11.83515963]
[1764272179099,0.00112,3031.0,3030.9,7.41441378]
[1764272179323,0.00112,3031.0,3030.9,5.6057181]
[1764272179909,0.00112,3031.0,3030.9,5.6387116]
[1764272180699,0.00112,3031.0,3030.9,4.7294116]
[1764272181013,0.00112,3031.0,3030.9,3.29935002]
[1764272181225,0.00112,3031.0,3030.9,3.75075002]
[1764272184397,0.00112,3031.0,3030.9,3.78374352]
[1764272184596,0.00112,3031.0,3030.9,4.24164352]
[1764272185918,0.00112,3031.0,3030.9,4.44964352]
[1764272186101,0.00112,3031.0,3030.9,5.89533377]
[1764272186801,0.00112,3031.0,3030.9,9.23892356]
[1764272187000,0.00112,3031.0,3030.9,12.55766941]
[1764272187215,2e-05,3031.0,3030.9,12.55766941]
[1764272187410,2e-05,3031.0,3030.9,12.68978704]
[1764272187718,0.002,3031.1,3031.0,0.82559411]
[1764272187895,0.002,3031.1,3031.0,7.23746591]
[1764272188096,0.002,3031.1,3031.0,7.2044735]
[1764272188501,0.002,3031.1,3031.0,10.42068794]
[1764272191500,0.002,3031.3,3031.0,13.61992911]
[1764272191698,0.002,3031.3,3031.2,0.7377]
[1764272191896,0.002,3031.3,3031.2,2.12523274]
[1764272192102,0.002,3031.3,3031.2,2.58313274]
[1764272192302,0.002,3031.3,3031.2,2.48313274]
[1764272192522,0.002,3031.4,3031.2,2.48313274]
[1764272192523,0.4788,3032.4,3031.8,2.70599568]
[1764272192727,0.4788,3032.4,3032.0,6.59630606]
[1764272194315,0.30683159,3032.3,3032.0,6.59630606]
[1764272194509,0.4788,3032.4,3032.0,3.33113456]
[1764272194712,0.3302,3032.1,3032.0,3.29815303]
[1764272195327,0.8075,3032.1,3032.0,3.29815303]
[1764272197307,0.3302,3032.1,3032.0,3.29815303]
[1764272197909,0.8075,3032.1,3032.0,3.29815303]
[1764272198541,0.8075,3032.1,3032.0,6.00414871]
[1764272198750,0.8075,3032.1,3032.0,2.70599568]
[1764272198751,1.11475486,3032.1,3032.0,2.70599568]
[1764272198932,1.86958736,3032.1,3032.0,2.70599568]
[1764272199140,6.29872972,3032.1,3032.0,2.70599568]
[1764272199317,6.39872972,3032.1,3032.0,2.70599568]
[1764272199912,3.00068547,3032.1,3032.0,2.70599568]
[1764272200224,2.23055297,3032.1,3032.0,2.70599568]
[1764272202911,2.23055849,3032.1,3032.0,2.70599568]
[1764272203115,5.52860274,3032.1,3032.0,2.70599568]
[1764272204328,5.62860274,3032.1,3032.0,2.70599568]
[1764272204530,0.505504,3032.0,3031.9,2.70599568]
[1764272204730,1.27476438,3032.0,3031.9,2.70599568]
[1764272204930,1.62166438,3032.0,3031.9,2.70599568]
[1764272206150,5.81414149,3032.0,3031.9,2.70599568]
[1764272206521,2.41598846,3032.0,3031.9,2.70599568]
[1764272206722,1.52166438,3032.0,3031.9,2.70599568]
[1764272207123,4.81981741,3032.0,3031.9,2.70599568]
[1764272207320,4.35781741,3032.0,3031.9,2.70599568]
[1764272207525,4.81871741,3032.0,3031.9,2.70599568]
[1764272207726,1.05966438,3032.0,3031.9,2.70599568]
[1764272208155,0.71276438,3032.0,3031.9,3.19049568]
[1764272209025,1.52056438,3032.0,3031.9,2.70599568]
[1764272210334,1.52056438,3032.0,3031.8,0.001]
[1764272210649,0.65526038,3031.9,3031.8,0.001]
[1764272210830,0.30726038,3031.9,3031.8,0.33425156]
[1764272211036,0.30726038,3031.9,3031.8,0.81875156]
[1764272211347,0.002,3032.1,3031.8,1.27855156]
[1764272211649,0.002,3032.1,3032.0,0.4845]
[1764272212055,0.002,3032.1,3032.0,0.9443]
[1764272212653,0.002,3032.1,3032.0,4.24245303]
[1764272212851,0.002,3032.1,3032.0,5.05404747]
[1764272214232,0.002,3032.1,3032.0,5.087029]
[1764272215833,0.002,3032.1,3032.0,7.79302468]
[1764272216174,0.002,3032.1,3032.0,7.76004315]
[1764272216664,0.002,3032.1,3032.0,5.05404747]
[1764272217163,0.002,3032.1,3032.0,5.087029]
[1764272217455,0.002,3032.1,3032.0,4.10974747]
[1764272217826,0.002,3032.1,3032.0,1.29609444]
[1764272218032,4.25256399,3032.1,3031.8,0.001]
[1764272218246,0.5346,3031.9,3031.8,0.001]
[1764272218447,0.84164487,3031.9,3031.8,0.001]
[1764272218661,1.70684887,3031.9,3031.8,0.001]
[1764272218860,2.29130567,3031.9,3031.8,0.001]
[1764272219156,5.58956748,3031.9,3031.8,0.001]
[1764272220249,2.29130567,3031.9,3031.8,0.001]
[1764272220454,5.58956748,3031.9,3031.8,0.001]
[1764272220757,1.70684887,3031.9,3031.8,0.001]
[1764272221658,1.70684887,3031.9,3031.8,0.9453]
[1764272221659,0.30704487,3031.9,3031.8,0.9453]
[1764272222061,0.30704487,3031.9,3031.8,0.4855]
[1764272222279,0.002,3032.1,3031.8,0.9782837]
[1764272222561,0.002,3032.1,3032.0,0.4845]
[1764272222755,0.30911613,3032.1,3031.8,0.0339837]
[1764272223059,0.30711613,3032.0,3031.9,3.29826181]
[1764272223262,0.30711613,3032.0,3031.9,3.96132287]
[1764272223434,0.30711613,3032.0,3031.9,4.44582287]
[1764272224237,0.002,3032.1,3031.9,8.20388468]
[1764272224438,0.002,3032.1,3032.0,0.97728153]
[1764272224639,0.30907996,3032.1,3032.0,0.97728153]
[1764272224847,0.30907996,3032.1,3032.0,1.80106815]
[1764272225169,0.002,3032.1,3032.0,5.09922118]
[1764272228673,0.002,3032.1,3032.0,4.63942118]
[1764272229052,0.002,3032.1,3032.0,5.09922118]
[1764272230381,0.002,3032.1,3032.0,4.15492118]
[1764272230543,0.3369,3032.1,3031.8,0.001]
[1764272230873,0.0047,3032.0,3031.8,0.001]
[1764272231274,0.0047,3032.0,3031.9,2.70599568]
[1764272231443,0.002,3032.1,3031.9,9.3025193]
[1764272231644,0.002,3032.1,3031.9,10.23287123]
[1764272232253,0.33,3032.0,3031.9,6.93460942]
[1764272232577,3.93531286,3032.0,3031.8,0.001]
[1764272232876,0.9687589,3031.9,3031.8,0.001]
[1764272233693,0.3118589,3031.9,3031.8,0.001]
[1764272234269,0.3070589,3031.9,3031.8,0.4953]
[1764272234475,0.3070589,3031.9,3031.8,3.7936706]
[1764272234648,0.3070589,3031.9,3031.8,3.8266543]
[1764272235272,0.6456589,3031.9,3031.8,3.8266543]
[1764272235582,0.6456589,3031.9,3031.8,3.2993706]
[1764272237423,0.3070589,3031.9,3031.8,3.2993706]
[1764272238083,0.6470589,3031.9,3031.8,0.001]
[1764272238261,1.1210589,3031.9,3031.8,0.001]
[1764272238457,0.6470589,3031.9,3031.8,0.001]
[1764272238663,0.3070589,3031.9,3031.8,3.7936706]
[1764272239985,0.30703905,3031.9,3031.8,3.7936706]
[1764272240882,0.30703905,3031.9,3031.8,0.4953]
[1764272241054,0.64833905,3031.9,3031.8,0.001]
[1764272242187,0.64833905,3031.9,3031.8,3.2993706]
[1764272243070,0.64833905,3031.9,3031.8,6.00536628]
[1764272243881,0.64833905,3031.9,3031.8,6.99216628]
[1764272243882,0.30703905,3031.9,3031.8,6.99216628]
[1764272244261,0.30703905,3031.9,3031.8,6.49966628]
[1764272244683,0.64563905,3031.9,3031.8,2.70699568]
[1764272244988,1.30123905,3031.9,3031.8,2.70699568]
[1764272245886,1.30123905,3031.9,3031.8,6.00536628]
[1764272246058,1.30123905,3031.9,3031.8,2.70699568]
[1764272247203,1.74513487,3031.9,3031.8,2.70699568]
[1764272247368,1.84513487,3031.9,3031.8,2.70699568]
[1764272248562,5.06342104,3031.9,3031.8,2.70699568]
[1764272249089,5.06342104,3031.9,3031.8,0.001]
[1764272249399,0.30703905,3031.9,3031.8,0.4953]
[1764272251590,0.30703905,3031.9,3031.8,3.7936706]
[1764272251796,0.30703905,3031.9,3031.8,3.8266543]
[1764272254096,0.30703905,3031.9,3031.8,4.3191543]
[1764272254292,0.30703905,3031.9,3031.8,3.8266543]
[1764272254990,0.30703905,3031.9,3031.8,6.53264998]
[1764272256087,0.002,3032.1,3031.8,11.56388116]
[1764272256297,0.002,3032.1,3032.0,0.4943]
[1764272256775,0.002,3032.1,3032.0,0.9868]
[1764272257505,0.002,3032.1,3032.0,1.01978153]
[1764272257697,0.002,3032.1,3032.0,2.17616943]
[1764272258909,0.002,3032.1,3032.0,5.47432246]
[1764272262708,4.34122333,3032.1,3031.8,0.001]
[1764272262914,0.4918,3031.9,3031.8,0.001]
[1764272263082,0.79893716,3031.9,3031.8,0.001]
[1764272263406,1.29803716,3031.9,3031.8,0.001]
[1764272265613,0.79893716,3031.9,3031.8,0.001]
[1764272269712,1.11143716,3031.9,3031.8,0.001]
[1764272270017,0.79893716,3031.9,3031.8,0.001]
[1764272270729,0.30713716,3031.9,3031.8,0.4841]
[1764272272726,0.30713716,3031.9,3031.8,3.19009568]
[1764272272899,0.30713716,3031.9,3031.8,6.97896628]
[1764272273210,0.30713716,3031.9,3031.8,6.48846628]
[1764272274232,0.61243716,3031.9,3031.8,2.70699568]
[1764272274420,1.10953716,3031.9,3031.8,2.70699568]
[1764272274797,0.61243716,3031.9,3031.8,2.70699568]
[1764272277805,0.30713716,3031.9,3031.8,6.00536628]
[1764272278930,0.30713716,3031.9,3031.8,6.48846628]
[1764272279506,0.30713716,3031.9,3031.8,3.19009568]
[1764272280532,0.30713716,3031.9,3031.8,8.03970958]
[1764272280703,0.30713716,3031.9,3031.8,8.00672588]
[1764272281237,0.80403716,3031.9,3031.8,2.70699568]
[1764272281435,1.30113716,3031.9,3031.8,2.70699568]
[1764272287544,0.30713716,3031.9,3031.8,3.19009568]
[1764272287840,0.61243716,3031.9,3031.8,2.70699568]
[1764272288717,0.30713716,3031.9,3031.8,7.01194998]
[1764272288923,0.30713716,3031.9,3031.8,8.01000283]
[1764272290208,0.30913716,3031.9,3031.8,7.51950283]
[1764272290517,0.30913716,3031.9,3031.8,7.97420283]
[1764272292219,0.002,3031.9,3031.8,7.97420283]
[1764272294848,0.002,3031.9,3031.8,11.292489]
[1764272295034,0.002,3031.9,3031.8,11.42457129]
[1764272296523,0.002,3032.3,3032.1,2.70199568]
[1764272296723,0.002,3032.3,3032.2,1.26133892]
[1764272296923,0.002,3032.3,3032.2,5.04637441]
[1764272297548,0.002,3032.3,3032.2,7.74837009]
[1764272297826,0.002,3032.3,3032.2,7.71539074]
[1764272302556,0.002,3032.3,3032.2,11.75927102]
[1764272302751,0.002,3032.3,3032.2,11.89132845]
[1764272305037,0.002,3032.3,3032.2,8.57304228]
[1764272305941,0.002,3032.3,3032.2,8.67304228]
[1764272307665,0.002,3032.3,3032.2,8.57304228]
[1764272307836,0.002,3032.3,3032.2,11.89132845]
[1764272308460,0.002,3032.7,3032.6,2.69599568]
[1764272308651,0.002,3032.7,3032.6,3.01555525]
[1764272308842,0.002,3032.7,3032.6,3.51515525]
[1764272309043,0.002,3032.7,3032.6,3.64721922]
[1764272309255,0.002,3032.7,3032.6,7.15271971]
[1764272311860,0.002,3032.7,3032.6,7.63981971]
[1764272316070,0.002,3032.7,3032.6,7.63439971]
[1764272317741,0.002,3032.7,3032.6,7.14729971]
[1764272318243,0.002,3032.7,3032.6,7.63439971]
[1764272323478,0.002,3032.7,3032.6,7.14729971]
[1764272323645,0.002,3032.7,3032.6,7.71679971]
[1764272327657,0.002,3032.7,3032.6,7.61679971]
[1764272330249,0.002,3032.7,3032.6,7.14729971]
[1764272330791,0.2429,3032.7,3032.6,6.64769971]
[1764272330973,0.737,3032.7,3032.6,6.64769971]
[1764272331176,0.2429,3032.7,3032.6,6.64769971]
[1764272332451,0.002,3032.7,3032.6,6.64769971]
[1764272332855,0.002,3032.7,3032.6,7.09809971]
[1764272337652,0.002,3032.7,3032.6,7.56759971]
[1764272338056,0.002,3032.9,3032.7,2.68857568]
[1764272338268,0.002,3032.9,3032.7,5.70061969]
[1764272338690,0.002,3032.9,3032.7,5.83267669]
[1764272340292,0.7515,3032.8,3032.7,8.38519454]
[1764272342361,0.7515,3032.8,3032.7,8.17719454]
[1764272342689,1.05983013,3032.8,3032.7,2.68857568]
[1764272343580,0.78153013,3032.8,3032.7,5.98596744]
[1764272343786,0.002,3032.8,3032.7,6.46934135]
[1764272344089,0.002,3032.8,3032.7,8.14687469]
[1764272344294,0.002,3032.8,3032.7,8.11390078]
[1764272345987,0.002,3032.8,3032.7,8.58340078]
[1764272346700,0.002,3032.8,3032.7,8.11390078]
[1764272346905,0.002,3032.8,3032.7,8.58340078]
[1764272347391,0.002,3032.8,3032.7,8.68340078]
[1764272347774,0.002,3032.9,3032.8,3.41216979]
[1764272347974,0.002,3032.9,3032.8,10.40234237]
[1764272348301,0.002,3032.9,3032.8,16.69936954]
[1764272351998,0.00059941,3033.1,3033.0,0.4597]
[1764272352198,0.00059941,3033.1,3033.0,4.66095917]
[1764272352391,0.00059941,3033.1,3033.0,5.15475917]
[1764272352594,0.00059941,3033.1,3033.0,10.41877198]
[1764272352798,0.00059941,3033.1,3033.0,10.51781692]
[1764272353512,0.48309941,3033.1,3033.0,5.3960284]
[1764272353809,0.75559941,3033.1,3033.0,2.68657568]
[1764272354482,0.75559941,3033.1,3033.0,5.98364129]
[1764272357114,0.48309941,3033.1,3033.0,5.98364129]
[1764272358508,0.48309941,3033.1,3033.0,6.01661194]
[1764272358709,0.00059941,3033.1,3033.0,6.01661194]
[1764272359303,0.00059941,3033.1,3033.0,8.06148999]
[1764272359502,0.48309941,3033.1,3033.0,7.56881934]
[1764272359804,0.75559941,3033.1,3033.0,7.56881934]
[1764272360192,0.48309941,3033.1,3033.0,7.56881934]
[1764272360612,0.00059941,3033.1,3033.0,8.02851934]
[1764272363015,0.00059941,3033.1,3033.0,8.62231934]
[1764272363817,0.75359941,3033.1,3033.0,7.56881934]
[1764272365686,0.28239941,3033.1,3033.0,7.56881934]
[1764272366320,0.75359941,3033.1,3033.0,7.56881934]
[1764272367216,0.75359941,3033.1,3033.0,6.19164129]
[1764272368350,0.002,3034.2,3033.7,0.4597]
[1764272368494,0.1812,3035.7,3034.9,0.1]
[1764272368694,0.1812,3035.7,3034.9,6.27084811]
[1764272368892,0.1812,3035.7,3034.9,6.65686826]
[1764272369111,0.1812,3035.7,3034.9,8.40761496]
[1764272369431,0.1812,3035.7,3034.9,7.90832322]
[1764272369432,0.4732,3035.5,3034.9,7.90832322]
[1764272369820,0.4732,3035.5,3034.9,8.30212322]
[1764272370133,0.4732,3035.5,3034.9,7.80832322]
[1764272370300,0.4732,3035.5,3034.9,5.447315]
[1764272371429,0.4732,3035.5,3034.9,5.547315]
[1764272372203,0.1812,3035.7,3034.9,4.987615]
[1764272372204,0.4845,3035.0,3034.9,4.987615]
[1764272372557,0.4845,3035.0,3034.9,6.75302127]
[1764272373316,0.4845,3035.0,3034.9,10.36502127]
[1764272373511,0.7577,3035.0,3034.7,0.88244253]
[1764272373702,0.1919,3034.8,3034.6,4.17770545]
[1764272373902,0.1892,3034.8,3034.6,4.17770545]
[1764272374126,0.7557,3034.7,3034.6,4.17770545]
[1764272375731,0.2825,3034.7,3034.6,4.17770545]
[1764272375935,0.7538,3034.7,3034.6,4.17770545]
[1764272376440,0.002,3035.0,3034.6,16.37598528]
[1764272376601,0.002,3035.0,3034.9,5.53455562]
[1764272376805,0.002,3035.0,3034.9,6.75394973]
[1764272377524,0.002,3035.0,3034.9,10.04895121]
[1764272377805,0.002,3035.0,3034.9,10.52415121]
[1764272378124,0.002,3035.0,3034.9,11.92687721]
[1764272378321,0.002,3035.0,3034.9,10.16147094]
[1764272378503,0.002,3035.0,3034.9,6.95202159]
[1764272378835,0.002,3035.0,3034.9,8.71742786]
[1764272379035,0.002,3035.0,3034.9,8.22362786]
[1764272379220,0.002,3035.0,3034.9,6.45822159]
[1764272380075,0.002,3035.0,3034.9,6.95202159]
[1764272380334,0.002,3035.0,3034.9,6.85202159]
[1764272381102,0.002,3035.0,3034.9,6.95202159]
[1764272385153,0.002,3035.1,3034.9,6.95202159]
[1764272385154,0.002,3035.4,3035.3,3.814]
[1764272385440,0.002,3035.4,3035.3,21.30219341]
[1764272385654,0.002,3035.4,3035.3,20.6946769]
[1764272385955,0.002,3035.4,3035.3,20.82659279]
[1764272386451,0.002,3035.4,3035.3,20.65097788]
[1764272388656,0.49,3035.4,3035.3,9.4434741]
[1764272388845,0.7459,3035.4,3035.3,1.01177566]
[1764272389155,0.7459,3035.4,3035.2,0.208]
[1764272389356,0.4923,3035.3,3035.2,0.208]
[1764272391370,0.4923,3035.3,3035.2,3.5026758]
[1764272393232,0.4923,3035.3,3035.2,4.38253557]
[1764272394562,0.4923,3035.3,3035.2,0.87985977]
[1764272394742,0.4923,3035.3,3035.1,4.46779678]
[1764272394944,0.4897,3035.3,3035.1,4.46779678]
[1764272395147,0.2542,3035.2,3035.1,3.29470129]
[1764272395647,0.7416,3035.2,3035.1,3.29570129]
[1764272396379,0.7416,3035.2,3035.1,4.46879678]
[1764272397158,0.7416,3035.2,3035.1,3.29570129]
[1764272399876,0.7416,3035.2,3035.1,3.815]
[1764272400042,0.7416,3035.2,3035.1,5.58951391]
[1764272400244,0.7416,3035.2,3035.1,3.815]
[1764272401242,0.7416,3035.2,3035.1,3.84794784]
[1764272402374,1.04867826,3035.2,3035.1,3.815]
[1764272402556,1.04867826,3035.2,3035.1,4.70209127]
[1764272403281,4.34335406,3035.2,3035.1,4.70209127]
[1764272403606,5.12833807,3035.2,3035.1,4.70209127]
[1764272404506,5.53384207,3035.2,3035.1,0.88809127]
[1764272404709,1.04867826,3035.2,3035.1,0.001]
[1764272405076,4.34335406,3035.2,3035.1,0.001]
[1764272407279,1.04867826,3035.2,3035.1,0.001]
[1764272407473,4.34335406,3035.2,3035.1,0.001]
[1764272407678,4.79888947,3035.2,3035.1,0.001]
[1764272407904,1.50421367,3035.2,3035.1,0.001]
[1764272409710,0.7416,3035.2,3035.1,3.815]
[1764272409892,0.7416,3035.2,3035.1,4.70209127]
[1764272410606,0.7416,3035.2,3035.1,3.815]
[1764272414225,0.7416,3035.2,3035.1,3.84794784]
[1764272415034,0.002,3035.3,3035.1,7.63983219]
[1764272415193,0.002,3035.3,3035.2,4.71715838]
[1764272415392,0.4893,3035.3,3035.2,3.814]
[1764272415615,0.7459,3035.3,3035.2,3.814]
[1764272415808,0.4893,3035.3,3035.2,3.814]
[1764272417009,0.7459,3035.3,3035.2,3.814]
[1764272417401,0.7459,3035.3,3035.2,4.99675156]
[1764272418196,1.05312907,3035.3,3035.2,4.99675156]
[1764272418511,1.05318736,3035.3,3035.2,4.99675156]
[1764272419309,4.34775461,3035.3,3035.2,4.99675156]
[1764272419512,4.34781342,3035.3,3035.2,3.814]
[1764272420506,1.05324617,3035.3,3035.2,3.814]
[1764272421299,1.05324617,3035.3,3035.2,4.99675156]
[1764272421624,1.05324617,3035.3,3035.2,3.814]
[1764272422620,0.30934617,3035.3,3035.2,4.3111]
[1764272422826,0.30934617,3035.3,3035.2,5.52679831]
[1764272423121,0.30934617,3035.3,3035.2,4.34404675]
[1764272423323,0.79664617,3035.3,3035.2,3.84694675]
[1764272423528,0.79664617,3035.3,3035.2,4.99890597]
[1764272424105,1.05324617,3035.3,3035.2,4.99890597]
[1764272424318,1.05324617,3035.3,3035.2,3.814]
[1764272425127,0.30934617,3035.3,3035.2,3.814]
[1764272425291,0.58034617,3035.3,3035.2,3.814]
[1764272425490,1.05104617,3035.3,3035.2,3.814]
[1764272426329,0.58034617,3035.3,3035.2,3.814]
[1764272426728,1.05104617,3035.3,3035.2,3.814]
[1764272427507,0.30934617,3035.3,3035.2,3.814]
[1764272427699,0.30934617,3035.3,3035.2,3.84694675]
[1764272427896,0.79664617,3035.3,3035.2,3.814]
[1764272428633,1.05324617,3035.3,3035.2,3.814]
[1764272429126,4.34781342,3035.3,3035.2,3.814]
[1764272429517,4.34781342,3035.3,3035.2,4.99986518]
[1764272430726,0.30934617,3035.3,3035.2,4.3111]
[1764272430927,0.58034617,3035.3,3035.2,3.814]
[1764272431129,0.30934617,3035.3,3035.2,3.814]
[1764272431509,0.79664617,3035.3,3035.2,3.814]
[1764272431838,1.05324617,3035.3,3035.2,3.814]
[1764272432132,0.79664617,3035.3,3035.2,3.814]
[1764272432703,0.79664617,3035.3,3035.2,9.84798971]
[1764272432704,0.30934617,3035.3,3035.2,9.84798971]
[1764272432921,0.30934617,3035.3,3035.2,6.08561391]
[1764272434105,0.30934617,3035.3,3035.2,6.11856066]
[1764272434505,0.30934617,3035.3,3035.2,8.97644001]
[1764272434735,0.30934617,3035.3,3035.2,4.3111]
[1764272434907,0.30934617,3035.3,3035.2,4.34404675]
[1764272435533,0.30934617,3035.3,3035.2,4.3111]
[1764272435918,0.30934617,3035.3,3035.2,7.63872255]
[1764272436234,0.002,3035.3,3035.2,9.2545257]
[1764272437306,0.002,3035.3,3035.2,11.71553392]
[1764272437826,0.002,3035.3,3035.2,9.3545257]
[1764272438640,0.002,3035.3,3035.2,11.72435169]
[1764272439840,0.002,3035.3,3035.2,9.3545257]
[1764272440466,0.002,3035.3,3035.2,11.72329736]
[1764272442046,0.002,3035.6,3035.5,3.81]
[1764272442237,0.002,3035.6,3035.5,4.73869]
[1764272442438,0.002,3035.6,3035.5,5.22929]
[1764272443068,0.002,3035.6,3035.5,8.55658368]
[1764272443240,0.002,3035.6,3035.5,8.52364018]
[1764272447956,0.002,3035.6,3035.5,14.85364018]
[1764272448470,0.7447,3035.6,3035.5,11.91477781]
[1764272449464,0.7447,3035.6,3035.5,10.14]
[1764272450276,0.4831,3035.6,3035.5,10.14]
[1764272451456,0.002,3035.6,3035.5,4.2633]
[1764272451657,0.002,3035.6,3035.5,4.2962435]
[1764272452154,0.002,3035.6,3035.5,7.59059368]
[1764272452379,0.002,3035.6,3035.5,8.65535231]
[1764272452881,0.002,3035.6,3035.5,8.86335231]
[1764272453303,0.002,3035.6,3035.5,11.33212397]
[1764272454651,0.002,3035.6,3035.5,12.09307761]
[1764272454863,0.002,3035.6,3035.5,18.42307761]
[1764272455587,0.002,3035.6,3035.5,19.14867172]